Workbook

Sheet Sheet3 (hidden)
A1: Enter Groen model number with drop down box - v look up | B1: Hourly water usage | C1: How many hours per day with drop down box | D1: Temperature | F1: Fahrenheit | G1: Temperature Correction Factor | H1: 175 | I1: 350 | J1: 1500
H2: OP175 | I2: OP350 | J2: BWS1500
A3: SSB-3E | B3: 5.3 | C3: 1 | D3: 32 | F3: 32 | G3: 2.529553676 | H3: 69.1821651 | I3: 138.3643302 | J3: 592.9899865
A4: SSB-5E | B4: 6.9 | C4: 2 | D4: 33 | F4: =F3+1 -> 33 | G4: 2.473358265 | H4: 70.75400377 | I4: 141.5080075 | J4: 606.4628894
A5: SSB-10EF | B5: 22 | C5: 3 | D5: 34 | F5: =F4+1 -> 34 | G5: 2.418631511 | H5: 72.35496568 | I5: 144.7099314 | J5: 620.1854201
A6: (2)SSB-3EF | B6: 10.6 | C6: 4 | D6: 35 | F6: 35 | G6: 2.365329754 | H6: 73.98545581 | I6: 147.9709116 | J6: 634.1610498
A7: (2)SSB-5EF | B7: 13.8 | C7: 5 | D7: 36 | F7: 36 | G7: 2.313410778 | H7: 75.64588256 | I7: 151.2917651 | J7: 648.3932791
A8: (2)SSB-10EF | B8: 44 | C8: 6 | D8: 37 | F8: 37 | G8: 2.26283376 | H8: 77.33665773 | I8: 154.6733155 | J8: 662.8856377
A9: SSB-3G | B9: 2.2 | C9: 7 | D9: 38 | F9: 38 | G9: 2.213559222 | H9: 79.05819654 | I9: 158.1163931 | J9: 677.6416846
A10: SSB-5G | B10: 2.4 | C10: 8 | D10: 39 | F10: 39 | G10: 2.165548978 | H10: 80.8109176 | I10: 161.6218352 | J10: 692.665008
A11: SSB-10GF | B11: 22 | C11: 9 | D11: 40 | F11: 40 | G11: 2.118766091 | H11: 82.59524294 | I11: 165.1904859 | J11: 707.9592252
A12: (2)SSB-3GF | B12: 4.4 | C12: 10 | D12: 41 | F12: 41 | G12: 2.073174826 | H12: 84.41159801 | I12: 168.823196 | J12: 723.5279829
A13: (2)SSB-5GF | B13: 4.8 | C13: 11 | D13: 42 | F13: 42 | G13: 2.028740608 | H13: 86.26041165 | I13: 172.5208233 | J13: 739.374957
A14: (2)SSB-10GF | B14: 44 | C14: 12 | D14: 43 | F14: 43 | G14: 1.985429982 | H14: 88.1421161 | I14: 176.2842322 | J14: 755.5038523
A15: HY-3E | B15: 3.6 | C15: 13 | D15: 44 | F15: 44 | G15: 1.94321057 | H15: 90.05714704 | I15: 180.1142941 | J15: 771.9184032
A16: HY-5E | B16: 6 | C16: 14 | D16: 45 | F16: 45 | G16: 1.902051034 | H16: 92.00594353 | I16: 184.0118871 | J16: 788.6223731
A17: (2)HY-3E | B17: 7.2 | C17: 15 | D17: 46 | F17: 46 | G17: 1.861921042 | H17: 93.98894801 | I17: 187.977896 | J17: 805.6195544
A18: HY-6E | B18: 7.2 | C18: 16 | D18: 47 | F18: 47 | G18: 1.822791229 | H18: 96.00660637 | I18: 192.0132127 | J18: 822.9137689
A19: (2)HY-3EF | B19: 14.4 | C19: 17 | D19: 48 | F19: 48 | G19: 1.784633165 | H19: 98.05936786 | I19: 196.1187357 | J19: 840.5088673
A20: (2)HY-5EF | B20: 12 | C20: 18 | D20: 49 | F20: 49 | G20: 1.747419321 | H20: 100.1476851 | I20: 200.2953703 | J20: 858.4087297
A21: HY-5G | B21: 6 | C21: 19 | D21: 50 | F21: 50 | G21: 1.711123041 | H21: 102.2720142 | I21: 204.5440285 | J21: 876.6172649
A22: HY-6G | B22: 7.2 | C22: 20 | D22: 51 | F22: 51 | G22: 1.675718505 | H22: 104.4328146 | I22: 208.8656293 | J22: 895.1384111
A23: (2)HY-5GF | B23: 12 | C23: 21 | D23: 52 | F23: 52 | G23: 1.641180707 | H23: 106.6305491 | I23: 213.2610982 | J23: 913.9761352
A24: HY-6SE | B24: 19.2 | C24: 22 | D24: 53 | F24: 53 | G24: 1.607485424 | H24: 108.8656839 | I24: 217.7313678 | J24: 933.1344333
A25: HY-10SE | B25: 19.2 | C25: 23 | D25: 54 | F25: 54 | G25: 1.574609187 | H25: 111.1386885 | I25: 222.2773771 | J25: 952.6173304
A26: CNEB/24-24kw | B26: 8.4 | C26: 24 | D26: 55 | F26: 55 | G26: 1.542529259 | H26: 113.450036 | I26: 226.9000721 | J26: 972.4288803
A27: CNEB/24-36kw | B27: 12.7 | D27: 56 | F27: 56 | G27: 1.511223607 | H27: 115.8002027 | I27: 231.6004054 | J27: 992.5731659
A28: CNEB/24-48kw | B28: 16.9 | D28: 57 | F28: =F27+1 -> 57 | G28: 1.48067088 | H28: 118.1896682 | I28: 236.3793364 | J28: 1013.054299
A29: CNGB/24 | B29: 13.25 | D29: 58 | F29: =F28+1 -> 58 | G29: 1.450850384 | H29: 120.6189156 | I29: 241.2378312 | J29: 1033.876419
A30: HY-6SG | B30: 19.2 | D30: 59 | F30: 59 | G30: 1.421742061 | H30: 123.0884313 | I30: 246.1768626 | J30: 1055.043697
A31: HY-10SG | B31: 19.2 | D31: 60 | F31: 60 | G31: 1.393326467 | H31: 125.5987051 | I31: 251.1974101 | J31: 1076.560329
D32: 61 | F32: 61 | G32: 1.365584752 | H32: 128.1502299 | I32: 256.3004599 | J32: 1098.430542
D33: 62 | F33: 62 | G33: 1.338498639 | H33: 130.7435024 | I33: 261.4870048 | J33: 1120.658592
D34: 63 | F34: 63 | G34: 1.312050404 | H34: 133.3790222 | I34: 266.7580444 | J34: 1143.248762
D35: 64 | F35: 64 | G35: 1.286222862 | H35: 136.0572924 | I35: 272.1145848 | J35: 1166.205364
D36: 65 | F36: 65 | G36: 1.260999342 | H36: 138.7788194 | I36: 277.5576389 | J36: 1189.532738
D37: 66 | F37: 66 | G37: 1.236363677 | H37: 141.544113 | I37: 283.088226 | J37: 1213.235254
D38: 67 | F38: 67 | G38: 1.212300183 | H38: 144.3536861 | I38: 288.7073722 | J38: 1237.317309
D39: 68 | F39: 68 | G39: 1.188793643 | H39: 147.208055 | I39: 294.41611 | J39: 1261.783329
D40: 69 | F40: 69 | G40: 1.165829295 | H40: 150.1077394 | I40: 300.2154788 | J40: 1286.637766
D41: 70 | F41: 70 | G41: 1.143392814 | H41: 153.0532621 | I41: 306.1065242 | J41: 1311.885104
D42: 71 | F42: 71 | G42: 1.121470298 | H42: 156.0451492 | I42: 312.0902985 | J42: 1337.529851
D43: 72 | F43: 72 | G43: 1.100048256 | H43: 159.0839303 | I43: 318.1678605 | J43: 1363.576545
D44: 73 | F44: 73 | G44: 1.079113592 | H44: 162.1701378 | I44: 324.3402756 | J44: 1390.029753
D45: 74 | F45: 74 | G45: 1.058653597 | H45: 165.3043078 | I45: 330.6086156 | J45: 1416.894067
D46: 75 | F46: 75 | G46: 1.038655928 | H46: 168.4869794 | I46: 336.9739588 | J46: 1444.174109
D47: 76 | F47: 76 | G47: 1.019108607 | H47: 171.7186949 | I47: 343.4373899 | J47: 1471.874528
D48: 77 | F48: 77 | G48: 1 | H48: 175 | I48: 350 | J48: 1500
D49: 78 | F49: 78 | G49: 0.981318811 | H49: 178.3314434 | I49: 356.6628868 | J49: 1528.555229
D50: 79 | F50: 79 | G50: 0.96305407 | H50: 181.7135771 | I50: 363.4271542 | J50: 1557.544947
D51: 80 | F51: 80 | G51: 0.9451951222 | H51: 185.1469563 | I51: 370.2939126 | J51: 1586.973911
D52: 81 | F52: 81 | G52: 0.9277316188 | H52: 188.6321394 | I52: 377.2642787 | J52: 1616.846909
D53: 82 | F53: =F52+1 -> 82 | G53: 0.9106535065 | H53: 192.1696878 | I53: 384.3393755 | J53: 1647.168752
D54: 83 | F54: 83 | G54: 0.8939510188 | H54: 195.7601662 | I54: 391.5203324 | J54: 1677.944282
D55: 84 | F55: 84 | G55: 0.8776146667 | H55: 199.4041424 | I55: 398.8082849 | J55: 1709.178364
D56: 85 | F56: 85 | G56: 0.8616352299 | H56: 203.1021875 | I56: 406.204375 | J56: 1740.875893
D57: 86 | F57: 86 | G57: 0.8460037487 | H57: 206.8548754 | I57: 413.7097507 | J57: 1773.041789
D58: 87 | F58: 87 | G58: 0.8307115158 | H58: 210.6627832 | I58: 421.3255665 | J58: 1805.680999
D59: 88 | F59: 88 | G59: 0.8157500682 | H59: 214.5264914 | I59: 429.0529828 | J59: 1838.798498
D60: 89 | F60: 89 | G60: 0.8011111799 | H60: 218.4465832 | I60: 436.8931664 | J60: 1872.399285
D61: 90 | F61: 90 | G61: 0.7867868544 | H61: 222.423645 | I61: 444.84729 | J61: 1906.488386
D62: 91 | F62: 91 | G62: 0.7727693178 | H62: 226.4582664 | I62: 452.9165327 | J62: 1941.070855
D63: 92 | F63: 92 | G63: 0.7590510118 | H63: 230.5510397 | I63: 461.1020795 | J63: 1976.151769
D64: 93 | F64: 93 | G64: 0.7456245874 | H64: 234.7025607 | I64: 469.4051214 | J64: 2011.736235
D65: 94 | F65: 94 | G65: 0.732482898 | H65: 238.9134279 | I65: 477.8268557 | J65: 2047.829382
D66: 95 | F66: 95 | G66: 0.7196189935 | H66: 243.1842427 | I66: 486.3684855 | J66: 2084.436366
D67: 96 | F67: 96 | G67: 0.7070261146 | H67: 247.5156099 | I67: 495.0312199 | J67: 2121.562371
D68: 97 | F68: 97 | G68: 0.6946976866 | H68: 251.908137 | I68: 503.816274 | J68: 2159.212603
D69: 98 | F69: =F68+1 -> 98 | G69: 0.6826273139 | H69: 256.3624344 | I69: 512.7248689 | J69: 2197.392295
D70: 99 | F70: =F69+1 -> 99 | G70: 0.6708087749 | H70: 260.8791157 | I70: 521.7582314 | J70: 2236.106706
D71: 100 | F71: =F70+1 -> 100 | G71: 0.6592360165 | H71: 265.4587972 | I71: 530.9175944 | J71: 2275.361119
D72: 101 | F72: =F71+1 -> 101 | G72: 0.647903149 | H72: 270.1020982 | I72: 540.2041964 | J72: 2315.160842
D73: 102 | F73: 102 | G73: 0.6368044416 | H73: 274.809641 | I73: 549.619282 | J73: 2355.511209
D74: 103 | F74: 103 | G74: 0.6259343172 | H74: 279.5820507 | I74: 559.1641014 | J74: 2396.417577
D75: 104 | F75: 104 | G75: 0.6152873481 | H75: 284.4199552 | I75: 568.8399105 | J75: 2437.885331
D76: 105 | F76: 105 | G76: 0.6048582516 | H76: 289.3239855 | I76: 578.6479709 | J76: 2479.919875
D77: 106 | F77: 106 | G77: 0.5946418856 | H77: 294.2947751 | I77: 588.5895502 | J77: 2522.526644
D78: 107 | F78: 107 | G78: 0.5846332445 | H78: 299.3329607 | I78: 598.6659214 | J78: 2565.711092
D79: 108 | F79: 108 | G79: 0.5748274553 | H79: 304.4391815 | I79: 608.878363 | J79: 2609.478699
D80: 109 | F80: 109 | G80: 0.5652197734 | H80: 309.6140797 | I80: 619.2281595 | J80: 2653.834969
D81: 110 | F81: 110 | G81: 0.5558055794 | H81: 314.8583003 | I81: 629.7166005 | J81: 2698.785431
D82: 111 | F82: 111 | G82: 0.5465803748 | H82: 320.1724907 | I82: 640.3449815 | J82: 2744.335635
D83: 112 | F83: 112 | G83: 0.5375397791 | H83: 325.5573016 | I83: 651.1146033 | J83: 2790.491157
D84: 113 | F84: 113 | G84: 0.5286795258 | H84: 331.0133861 | I84: 662.0267722 | J84: 2837.257595
D85: 114 | F85: 114 | G85: 0.5199954597 | H85: 336.5414 | I85: 673.0828 | J85: 2884.640571
D86: 115 | F86: 115 | G86: 0.5114835333 | H86: 342.1420019 | I86: 684.2840037 | J86: 2932.64573

Sheet RO Water Calculator
A1: RO WATER CALCULATOR
A2: Groen Model Number | B2: (2)HY-5EF | C2: =VLOOKUP(B2,Sheet3!A:B,2,FALSE) -> 12 | D2: =+C2*B3 -> 168
A3: Operating Hours Per Day | B3: 14 | C3: OP175 | D3: OP350 | E3: BWS1500
A4: Incoming Water Temperature | B4: 51 | C4: =VLOOKUP($B4,Sheet3!$F:$J,3,FALSE) -> 104.4328146 | D4: =VLOOKUP($B4,Sheet3!$F:$J,4,FALSE) -> 208.8656293 | E4: =VLOOKUP($B4,Sheet3!$F:$J,5,FALSE) -> 895.1384111
A5: Recommended RO System | B5: =IF(D2<=C4,C3,IF(D2<=D4,D3,E3)) -> OP350
A6: Click on the cells above using the drop down boxes to choose your data. After data is entered, the suggested RO system will show in the bottom right cell.

Sheet Sheet1 (hidden)
C3: RO "WATER TEMPERATURE COMPENSATION" CALCULATOR | AG3: Effect Temperature has on System Recovery if Permeate Flow Varies and Recovery Remains Fixed. Adjust Temperature (Step 3) to 77° F (25° C) | AM3: Effect Temperature has on System Recovery if Permeate Flow Varies and Recovery Remains Fixed. Adjust Temperature (Step 3) to 50° F (10° C)
C4: Step 1 | E4: Insert RO system production in the BLUE shaded field. | V4: 1500
C5: Step 2 | E5: Insert system Recovery in the GREEN shaded field. Use 33% for un-softened water Use 50% for softened water | V5: 0.5
C6: Step 3 | E6: Insert water temperature (in °F) in the PURPLE shaded field. | V6: 46
C7: Step 4 | E7: View your results in the tables below. YELLOW shaded areas indicate temperature selected and correction factor - Follow that same row across to locate PERMEATE FLOW, CONCENTRATE FLOW & TOTAL SYSTEM INLET FLOW in RED text.
C8: CONCENTRATE to PERMEATE RATIO. | V8: =IF(V5=0,0,(1-V5)/V5) -> 1
C9: Fahrenheit | D9: Celsius | E9: Temperature Correction Factor | G9: PERMEATE FLOW | N9: CONCENTRATE FLOW | U9: TOTAL SYSTEM INLET FLOW | AG9: Gallons Per Day | AI9: Recovery | AJ9: Percent Change | AM9: Gallons Per Day | AO9: Recovery | AP9: Percent Change
G10: Gallons Per Day | H10: Gallons Per Hour | I10: Gallons Per Minute | J10: Ounces Per Minute | K10: Liters Per Minute | L10: Milliliters Per Minute | N10: Gallons Per Day | O10: Gallons Per Hour | P10: Gallons Per Minute | Q10: Ounces Per Minute | R10: Liters Per Minute | S10: Milliliters Per Minute | U10: Gallons Per Day | V10: Gallons Per Hour | W10: Gallons Per Minute | X10: Ounces Per Minute | Y10: Liters Per Minute | Z10: Milliliters Per Minute | AG10: Permeate Flow | AH10: Conc. Flow | AM10: Permeate Flow | AN10: Conc. Flow
C11: 32 | D11: =(C11-32)*5/9 -> 0 | E11: =EXP(3020*(1/(273+D11)-(1/298))) -> 2.529553676 | G11: =V$4/$E11 -> 592.9899865 | H11: =G11/24 -> 24.70791611 | I11: =G11/1440 -> 0.4117986018 | J11: =I11*128 -> 52.71022103 | K11: =I11*3.785 -> 1.558657708 | L11: =I11*3785 -> 1558.657708 | N11: =IF(OR($V$4=0,$V$5=0),0,(G11/$V$5)-G11) -> 592.9899865 | O11: =IF(OR($V$4=0,$V$5=0),0,(H11/$V$5)-H11) -> 24.70791611 | P11: =IF(OR($V$4=0,$V$5=0),0,(I11/$V$5)-I11) -> 0.4117986018 | Q11: =IF(OR($V$4=0,$V$5=0),0,(J11/$V$5)-J11) -> 52.71022103 | R11: =IF(OR($V$4=0,$V$5=0),0,(K11/$V$5)-K11) -> 1.558657708 | S11: =IF(OR($V$4=0,$V$5=0),0,(L11/$V$5)-L11) -> 1558.657708 | U11: =IF($V$5=0,0,G11+N11) -> 1185.979973 | V11: =IF($V$5=0,0,H11+O11) -> 49.41583221 | W11: =IF($V$5=0,0,I11+P11) -> 0.8235972035 | X11: =IF($V$5=0,0,J11+Q11) -> 105.4204421 | Y11: =IF($V$5=0,0,K11+R11) -> 3.117315415 | Z11: =IF($V$5=0,0,L11+S11) -> 3117.315415 | AG11: =IF(V$6=C$56,G11,"") ->  | AH11: =IF(V$6=C$56,N$56,"") ->  | AI11: =IF(V$6=C$56,G11/(G11+N$56),"") ->  | AJ11: =IF(V$6=77,AI11-AI$56,"") ->  | AM11: =IF(V$6=C$29,G11,"") ->  | AN11: =IF(V$6=C$29,N$29,"") ->  | AO11: =IF(V$6=C$29,G11/(G11+N$56),"") ->  | AP11: =IF(V$6=50,AO11-AO$29,"") -> 
C12: =C11+1 -> 33 | D12: =(C12-32)*5/9 -> 0.5555555556 | E12: =EXP(3020*(1/(273+D12)-(1/298))) -> 2.473358265 | G12: 606.4628894 | H12: =G12/24 -> 25.26928706 | I12: =G12/1440 -> 0.4211547843 | J12: =I12*128 -> 53.90781239 | K12: =I12*3.785 -> 1.594070859 | L12: =I12*3785 -> 1594.070859 | N12: 606.4628894 | O12: 25.26928706 | P12: 0.4211547843 | Q12: 53.90781239 | R12: 1.594070859 | S12: 1594.070859 | U12: 1212.925779 | V12: 50.53857412 | W12: 0.8423095687 | X12: 107.8156248 | Y12: 3.188141717 | Z12: 3188.141717
C13: =C12+1 -> 34 | D13: 1.111111111 | E13: 2.418631511 | G13: 620.1854201 | H13: 25.84105917 | I13: 0.4306843195 | J13: 55.1275929 | K13: 1.630140149 | L13: 1630.140149 | N13: 620.1854201 | O13: 25.84105917 | P13: 0.4306843195 | Q13: 55.1275929 | R13: 1.630140149 | S13: 1630.140149 | U13: 1240.37084 | V13: 51.68211834 | W13: 0.861368639 | X13: 110.2551858 | Y13: 3.260280299 | Z13: 3260.280299
C14: 35 | D14: 1.666666667 | E14: 2.365329754 | G14: 634.1610498 | H14: 26.42337707 | I14: 0.4403896179 | J14: 56.36987109 | K14: 1.666874704 | L14: 1666.874704 | N14: 634.1610498 | O14: 26.42337707 | P14: 0.4403896179 | Q14: 56.36987109 | R14: 1.666874704 | S14: 1666.874704 | U14: 1268.3221 | V14: 52.84675415 | W14: 0.8807792358 | X14: 112.7397422 | Y14: 3.333749408 | Z14: 3333.749408
C15: 36 | D15: 2.222222222 | E15: 2.313410778 | G15: 648.3932791 | H15: 27.01638663 | I15: 0.4502731105 | J15: 57.63495814 | K15: 1.704283723 | L15: 1704.283723 | N15: 648.3932791 | O15: 27.01638663 | P15: 0.4502731105 | Q15: 57.63495814 | R15: 1.704283723 | S15: 1704.283723 | U15: 1296.786558 | V15: 54.03277326 | W15: 0.900546221 | X15: 115.2699163 | Y15: 3.408567446 | Z15: 3408.567446
C16: 37 | D16: 2.777777778 | E16: 2.26283376 | G16: 662.8856377 | H16: =G16/24 -> 27.6202349 | I16: 0.4603372484 | J16: 58.9231678 | K16: 1.742376485 | L16: 1742.376485 | N16: 662.8856377 | O16: 27.6202349 | P16: 0.4603372484 | Q16: 58.9231678 | R16: 1.742376485 | S16: 1742.376485 | U16: 1325.771275 | V16: 55.24046981 | W16: 0.9206744968 | X16: 117.8463356 | Y16: 3.48475297 | Z16: 3484.75297
C17: 38 | D17: 3.333333333 | E17: 2.213559222 | G17: 677.6416846 | H17: 28.23507019 | I17: 0.4705845032 | J17: 60.23481641 | K17: 1.781162345 | L17: 1781.162345 | N17: 677.6416846 | O17: 28.23507019 | P17: 0.4705845032 | Q17: 60.23481641 | R17: 1.781162345 | S17: 1781.162345 | U17: 1355.283369 | V17: 56.47014038 | W17: 0.9411690064 | X17: 120.4696328 | Y17: 3.562324689 | Z17: 3562.324689 | AO17: =IF(V$6=C$29,G17/(G17+N$29),"") -> 
C18: 39 | D18: 3.888888889 | E18: 2.165548978 | G18: 692.665008 | H18: 28.861042 | I18: 0.4810173666 | J18: 61.57022293 | K18: 1.820650733 | L18: 1820.650733 | N18: 692.665008 | O18: 28.861042 | P18: 0.4810173666 | Q18: 61.57022293 | R18: 1.820650733 | S18: 1820.650733 | U18: 1385.330016 | V18: 57.722084 | W18: 0.9620347333 | X18: 123.1404459 | Y18: 3.641301466 | Z18: 3641.301466
C19: 40 | D19: 4.444444444 | E19: 2.118766091 | G19: 707.9592252 | H19: 29.49830105 | I19: 0.4916383508 | J19: 62.92970891 | K19: 1.860851158 | L19: 1860.851158 | N19: 707.9592252 | O19: 29.49830105 | P19: 0.4916383508 | Q19: 62.92970891 | R19: 1.860851158 | S19: 1860.851158 | U19: 1415.91845 | V19: 58.9966021 | W19: 0.9832767017 | X19: 125.8594178 | Y19: 3.721702316 | Z19: 3721.702316
C20: 41 | D20: 5 | E20: 2.073174826 | G20: 723.5279829 | H20: 30.14699929 | I20: 0.5024499881 | J20: 64.31359848 | K20: 1.901773205 | L20: 1901.773205 | N20: 723.5279829 | O20: 30.14699929 | P20: 0.5024499881 | Q20: 64.31359848 | R20: 1.901773205 | S20: 1901.773205 | U20: 1447.055966 | V20: 60.29399858 | W20: 1.004899976 | X20: 128.627197 | Y20: 3.80354641 | Z20: 3803.54641
C21: 42 | D21: 5.555555556 | E21: 2.028740608 | G21: 739.374957 | H21: 30.80728987 | I21: 0.5134548312 | J21: 65.7222184 | K21: 1.943426536 | L21: 1943.426536 | N21: 739.374957 | O21: 30.80728987 | P21: 0.5134548312 | Q21: 65.7222184 | R21: 1.943426536 | S21: 1943.426536 | U21: 1478.749914 | V21: 61.61457975 | W21: 1.026909662 | X21: 131.4444368 | Y21: 3.886853072 | Z21: 3886.853072
C22: 43 | D22: 6.111111111 | E22: 1.985429982 | G22: 755.5038523 | H22: 31.47932718 | I22: 0.524655453 | J22: 67.15589798 | K22: 1.98582089 | L22: 1985.82089 | N22: 755.5038523 | O22: 31.47932718 | P22: 0.524655453 | Q22: 67.15589798 | R22: 1.98582089 | S22: 1985.82089 | U22: 1511.007705 | V22: 62.95865436 | W22: 1.049310906 | X22: 134.311796 | Y22: 3.971641779 | Z22: 3971.641779
C23: 44 | D23: 6.666666667 | E23: 1.94321057 | G23: 771.9184032 | H23: 32.1632668 | I23: 0.5360544467 | J23: 68.61496918 | K23: 2.028966081 | L23: 2028.966081 | N23: 771.9184032 | O23: 32.1632668 | P23: 0.5360544467 | Q23: 68.61496918 | R23: 2.028966081 | S23: 2028.966081 | U23: 1543.836806 | V23: 64.3265336 | W23: 1.072108893 | X23: 137.2299384 | Y23: 4.057932161 | Z23: 4057.932161
C24: 45 | D24: 7.222222222 | E24: 1.902051034 | G24: 788.6223731 | H24: 32.85926554 | I24: 0.5476544257 | J24: 70.0997665 | K24: 2.072872001 | L24: 2072.872001 | N24: 788.6223731 | O24: 32.85926554 | P24: 0.5476544257 | Q24: 70.0997665 | R24: 2.072872001 | S24: 2072.872001 | U24: 1577.244746 | V24: 65.71853109 | W24: 1.095308851 | X24: 140.199533 | Y24: 4.145744003 | Z24: 4145.744003
C25: 46 | D25: 7.777777778 | E25: 1.861921042 | G25: 805.6195544 | H25: 33.56748143 | I25: 0.5594580239 | J25: 71.61062706 | K25: 2.11754862 | L25: 2117.54862 | N25: 805.6195544 | O25: 33.56748143 | P25: 0.5594580239 | Q25: 71.61062706 | R25: 2.11754862 | S25: 2117.54862 | U25: 1611.239109 | V25: 67.13496287 | W25: 1.118916048 | X25: 143.2212541 | Y25: 4.235097241 | Z25: 4235.097241
C26: 47 | D26: 8.333333333 | E26: 1.822791229 | G26: 822.9137689 | H26: 34.2880737 | I26: 0.5714678951 | J26: 73.14789057 | K26: 2.163005983 | L26: 2163.005983 | N26: 822.9137689 | O26: 34.2880737 | P26: 0.5714678951 | Q26: 73.14789057 | R26: 2.163005983 | S26: 2163.005983 | U26: 1645.827538 | V26: 68.57614741 | W26: 1.14293579 | X26: 146.2957811 | Y26: 4.326011966 | Z26: 4326.011966
C27: 48 | D27: 8.888888889 | E27: 1.784633165 | G27: 840.5088673 | H27: 35.02120281 | I27: 0.5836867134 | J27: 74.71189932 | K27: 2.20925421 | L27: 2209.25421 | N27: 840.5088673 | O27: 35.02120281 | P27: 0.5836867134 | Q27: 74.71189932 | R27: 2.20925421 | S27: 2209.25421 | U27: 1681.017735 | V27: 70.04240561 | W27: 1.167373427 | X27: 149.4237986 | Y27: 4.418508421 | Z27: 4418.508421
C28: 49 | D28: 9.444444444 | E28: 1.747419321 | G28: 858.4087297 | H28: 35.7670304 | I28: 0.5961171734 | J28: 76.3029982 | K28: 2.256303501 | L28: 2256.303501 | N28: 858.4087297 | O28: 35.7670304 | P28: 0.5961171734 | Q28: 76.3029982 | R28: 2.256303501 | S28: 2256.303501 | U28: 1716.817459 | V28: 71.53406081 | W28: 1.192234347 | X28: 152.6059964 | Y28: 4.512607003 | Z28: 4512.607003
C29: 50 | D29: 10 | E29: 1.711123041 | G29: 876.6172649 | H29: 36.52571937 | I29: 0.6087619895 | J29: 77.92153466 | K29: 2.30416413 | L29: 2304.16413 | N29: 876.6172649 | O29: 36.52571937 | P29: 0.6087619895 | Q29: 77.92153466 | R29: 2.30416413 | S29: 2304.16413 | U29: 1753.23453 | V29: 73.05143875 | W29: 1.217523979 | X29: 155.8430693 | Y29: 4.608328261 | Z29: 4608.328261
C30: 51 | D30: 10.55555556 | E30: 1.675718505 | G30: 895.1384111 | H30: 37.2974338 | I30: 0.6216238966 | J30: 79.56785876 | K30: 2.352846449 | L30: 2352.846449 | N30: 895.1384111 | O30: 37.2974338 | P30: 0.6216238966 | Q30: 79.56785876 | R30: 2.352846449 | S30: 2352.846449 | U30: 1790.276822 | V30: 74.59486759 | W30: 1.243247793 | X30: 159.1357175 | Y30: 4.705692897 | Z30: 4705.692897
C31: 52 | D31: 11.11111111 | E31: 1.641180707 | G31: 913.9761352 | H31: 38.08233897 | I31: 0.6347056494 | J31: 81.24232313 | K31: 2.402360883 | L31: 2402.360883 | N31: 913.9761352 | O31: 38.08233897 | P31: 0.6347056494 | Q31: 81.24232313 | R31: 2.402360883 | S31: 2402.360883 | U31: 1827.95227 | V31: 76.16467793 | W31: 1.269411299 | X31: 162.4846463 | Y31: 4.804721766 | Z31: 4804.721766
C32: 53 | D32: 11.66666667 | E32: 1.607485424 | G32: 933.1344333 | H32: 38.88060139 | I32: 0.6480100231 | J32: 82.94528296 | K32: 2.452717937 | L32: 2452.717937 | N32: 933.1344333 | O32: 38.88060139 | P32: 0.6480100231 | Q32: 82.94528296 | R32: 2.452717937 | S32: 2452.717937 | U32: 1866.268867 | V32: 77.76120277 | W32: 1.296020046 | X32: 165.8905659 | Y32: 4.905435875 | Z32: 4905.435875
C33: 54 | D33: 12.22222222 | E33: 1.574609187 | G33: 952.6173304 | H33: 39.69238876 | I33: 0.6615398127 | J33: 84.67709603 | K33: 2.503928191 | L33: 2503.928191 | N33: 952.6173304 | O33: 39.69238876 | P33: 0.6615398127 | Q33: 84.67709603 | R33: 2.503928191 | S33: 2503.928191 | U33: 1905.234661 | V33: 79.38477753 | W33: 1.323079625 | X33: 169.3541921 | Y33: 5.007856383 | Z33: 5007.856383
C34: 55 | D34: 12.77777778 | E34: 1.542529259 | G34: 972.4288803 | H34: 40.51787001 | I34: 0.6752978336 | J34: 86.43812269 | K34: 2.5560023 | L34: 2556.0023 | N34: 972.4288803 | O34: 40.51787001 | P34: 0.6752978336 | Q34: 86.43812269 | R34: 2.5560023 | S34: 2556.0023 | U34: 1944.857761 | V34: 81.03574003 | W34: 1.350595667 | X34: 172.8762454 | Y34: 5.1120046 | Z34: 5112.0046
C35: 56 | D35: 13.33333333 | E35: 1.511223607 | G35: 992.5731659 | H35: 41.35721525 | I35: 0.6892869208 | J35: 88.22872586 | K35: 2.608950995 | L35: 2608.950995 | N35: 992.5731659 | O35: 41.35721525 | P35: 0.6892869208 | Q35: 88.22872586 | R35: 2.608950995 | S35: 2608.950995 | U35: 1985.146332 | V35: 82.7144305 | W35: 1.378573842 | X35: 176.4574517 | Y35: 5.21790199 | Z35: 5217.90199
C36: =C35+1 -> 57 | D36: =(C36-32)*5/9 -> 13.88888889 | E36: =EXP(3020*(1/(273+D36)-(1/298))) -> 1.48067088 | G36: 1013.054299 | H36: =G36/24 -> 42.21059579 | I36: =G36/1440 -> 0.7035099298 | J36: =I36*128 -> 90.04927101 | K36: =I36*3.785 -> 2.662785084 | L36: =I36*3785 -> 2662.785084 | N36: 1013.054299 | O36: 42.21059579 | P36: 0.7035099298 | Q36: 90.04927101 | R36: 2.662785084 | S36: 2662.785084 | U36: 2026.108598 | V36: 84.42119157 | W36: 1.40701986 | X36: 180.098542 | Y36: 5.325570168 | Z36: 5325.570168
C37: =C36+1 -> 58 | D37: 14.44444444 | E37: 1.450850384 | G37: 1033.876419 | H37: 43.07818414 | I37: 0.7179697357 | J37: 91.90012617 | K37: 2.71751545 | L37: 2717.51545 | N37: 1033.876419 | O37: 43.07818414 | P37: 0.7179697357 | Q37: 91.90012617 | R37: 2.71751545 | S37: 2717.51545 | U37: 2067.752839 | V37: 86.15636829 | W37: 1.435939471 | X37: 183.8002523 | Y37: 5.435030899 | Z37: 5435.030899
C38: 59 | D38: 15 | E38: 1.421742061 | G38: 1055.043697 | H38: 43.96015404 | I38: 0.7326692339 | J38: 93.78166195 | K38: 2.77315305 | L38: 2773.15305 | N38: 1055.043697 | O38: 43.96015404 | P38: 0.7326692339 | Q38: 93.78166195 | R38: 2.77315305 | S38: 2773.15305 | U38: 2110.087394 | V38: 87.92030807 | W38: 1.465338468 | X38: 187.5633239 | Y38: 5.546306101 | Z38: 5546.306101
C39: 60 | D39: 15.55555556 | E39: 1.393326467 | G39: 1076.560329 | H39: 44.85668038 | I39: 0.7476113396 | J39: 95.69425147 | K39: 2.82970892 | L39: 2829.70892 | N39: 1076.560329 | O39: 44.85668038 | P39: 0.7476113396 | Q39: 95.69425147 | R39: 2.82970892 | S39: 2829.70892 | U39: 2153.120658 | V39: 89.71336075 | W39: 1.495222679 | X39: 191.3885029 | Y39: 5.659417841 | Z39: 5659.417841
C40: 61 | D40: 16.11111111 | E40: 1.365584752 | G40: 1098.430542 | H40: 45.76793927 | I40: 0.7627989878 | J40: 97.63827044 | K40: 2.887194169 | L40: 2887.194169 | N40: 1098.430542 | O40: 45.76793927 | P40: 0.7627989878 | Q40: 97.63827044 | R40: 2.887194169 | S40: 2887.194169 | U40: 2196.861085 | V40: 91.53587853 | W40: 1.525597976 | X40: 195.2765409 | Y40: 5.774388337 | Z40: 5774.388337
C41: 62 | D41: 16.66666667 | E41: 1.338498639 | G41: 1120.658592 | H41: 46.694108 | I41: 0.7782351334 | J41: 99.61409707 | K41: 2.94561998 | L41: 2945.61998 | N41: 1120.658592 | O41: 46.694108 | P41: 0.7782351334 | Q41: 99.61409707 | R41: 2.94561998 | S41: 2945.61998 | U41: 2241.317184 | V41: 93.38821601 | W41: 1.556470267 | X41: 199.2281941 | Y41: 5.89123996 | Z41: 5891.23996
C42: 63 | D42: 17.22222222 | E42: 1.312050404 | G42: 1143.248762 | H42: 47.63536507 | I42: 0.7939227512 | J42: 101.6221122 | K42: 3.004997613 | L42: 3004.997613 | N42: 1143.248762 | O42: 47.63536507 | P42: 0.7939227512 | Q42: 101.6221122 | R42: 3.004997613 | S42: 3004.997613 | U42: 2286.497524 | V42: 95.27073015 | W42: 1.587845502 | X42: 203.2442243 | Y42: 6.009995227 | Z42: 6009.995227
C43: 64 | D43: 17.77777778 | E43: 1.286222862 | G43: =V$4/$E43 -> 1166.205364 | H43: 48.59189015 | I43: 0.8098648358 | J43: 103.662699 | K43: 3.065338404 | L43: 3065.338404 | N43: =IF(OR($V$4=0,$V$5=0),0,(G43/$V$5)-G43) -> 1166.205364 | O43: =IF(OR($V$4=0,$V$5=0),0,(H43/$V$5)-H43) -> 48.59189015 | P43: =IF(OR($V$4=0,$V$5=0),0,(I43/$V$5)-I43) -> 0.8098648358 | Q43: =IF(OR($V$4=0,$V$5=0),0,(J43/$V$5)-J43) -> 103.662699 | R43: =IF(OR($V$4=0,$V$5=0),0,(K43/$V$5)-K43) -> 3.065338404 | S43: =IF(OR($V$4=0,$V$5=0),0,(L43/$V$5)-L43) -> 3065.338404 | U43: =IF($V$5=0,0,G43+N43) -> 2332.410727 | V43: =IF($V$5=0,0,H43+O43) -> 97.1837803 | W43: =IF($V$5=0,0,I43+P43) -> 1.619729672 | X43: =IF($V$5=0,0,J43+Q43) -> 207.325398 | Y43: =IF($V$5=0,0,K43+R43) -> 6.130676807 | Z43: =IF($V$5=0,0,L43+S43) -> 6130.676807 | AG43: =IF(V$6=C$56,G43,"") ->  | AH43: =IF(V$6=C$56,N$56,"") ->  | AI43: =IF(V$6=C$56,G43/(G43+N$56),"") ->  | AJ43: =IF(V$6=77,AI43-AI$56,"") ->  | AM43: =IF(V$6=C$29,G43,"") ->  | AN43: =IF(V$6=C$29,N$29,"") ->  | AP43: =IF(V$6=50,AO43-AO$29,"") -> 
C44: 65 | D44: 18.33333333 | E44: 1.260999342 | G44: 1189.532738 | H44: 49.56386409 | I44: 0.8260644014 | J44: 105.7362434 | K44: 3.126653759 | L44: 3126.653759 | N44: 1189.532738 | O44: 49.56386409 | P44: 0.8260644014 | Q44: 105.7362434 | R44: 3.126653759 | S44: 3126.653759 | U44: 2379.065476 | V44: 99.12772817 | W44: 1.652128803 | X44: 211.4724868 | Y44: 6.253307519 | Z44: 6253.307519
C45: 66 | D45: 18.88888889 | E45: 1.236363677 | G45: 1213.235254 | H45: 50.55146892 | I45: 0.8425244821 | J45: 107.8431337 | K45: 3.188955165 | L45: 3188.955165 | N45: 1213.235254 | O45: 50.55146892 | P45: 0.8425244821 | Q45: 107.8431337 | R45: 3.188955165 | S45: 3188.955165 | U45: 2426.470508 | V45: 101.1029378 | W45: 1.685048964 | X45: 215.6862674 | Y45: 6.377910329 | Z45: 6377.910329
C46: 67 | D46: 19.44444444 | E46: 1.212300183 | G46: 1237.317309 | H46: 51.55488788 | I46: 0.8592481314 | J46: 109.9837608 | K46: 3.252254177 | L46: 3252.254177 | N46: 1237.317309 | O46: 51.55488788 | P46: 0.8592481314 | Q46: 109.9837608 | R46: 3.252254177 | S46: 3252.254177 | U46: 2474.634618 | V46: 103.1097758 | W46: 1.718496263 | X46: 219.9675216 | Y46: 6.504508355 | Z46: 6504.508355
C47: 68 | D47: 20 | E47: 1.188793643 | G47: 1261.783329 | H47: 52.57430536 | I47: 0.8762384227 | J47: 112.1585181 | K47: 3.31656243 | L47: 3316.56243 | N47: 1261.783329 | O47: 52.57430536 | P47: 0.8762384227 | Q47: 112.1585181 | R47: 3.31656243 | S47: 3316.56243 | U47: 2523.566657 | V47: 105.1486107 | W47: 1.752476845 | X47: 224.3170362 | Y47: 6.63312486 | Z47: 6633.12486
C48: 69 | D48: 20.55555556 | E48: 1.165829295 | G48: 1286.637766 | H48: 53.60990692 | I48: 0.8934984487 | J48: 114.3678014 | K48: 3.381891628 | L48: 3381.891628 | N48: 1286.637766 | O48: 53.60990692 | P48: 0.8934984487 | Q48: 114.3678014 | R48: 3.381891628 | S48: 3381.891628 | U48: 2573.275532 | V48: 107.2198138 | W48: 1.786996897 | X48: 228.7356029 | Y48: 6.763783257 | Z48: 6763.783257
C49: 70 | D49: 21.11111111 | E49: 1.143392814 | G49: 1311.885104 | H49: 54.66187931 | I49: 0.9110313219 | J49: 116.6120092 | K49: 3.448253553 | L49: 3448.253553 | N49: 1311.885104 | O49: 54.66187931 | P49: 0.9110313219 | Q49: 116.6120092 | R49: 3.448253553 | S49: 3448.253553 | U49: 2623.770207 | V49: 109.3237586 | W49: 1.822062644 | X49: 233.2240184 | Y49: 6.896507107 | Z49: 6896.507107 | AO49: =IF(V$6=C$29,G49/(G49+N$29),"") -> 
C50: 71 | D50: 21.66666667 | E50: 1.121470298 | G50: 1337.529851 | H50: 55.73041044 | I50: 0.928840174 | J50: 118.8915423 | K50: 3.515660059 | L50: 3515.660059 | N50: 1337.529851 | O50: 55.73041044 | P50: 0.928840174 | Q50: 118.8915423 | R50: 3.515660059 | S50: 3515.660059 | U50: 2675.059701 | V50: 111.4608209 | W50: 1.857680348 | X50: 237.7830846 | Y50: 7.031320117 | Z50: 7031.320117
C51: 72 | D51: 22.22222222 | E51: 1.100048256 | G51: 1363.576545 | H51: 56.81568938 | I51: 0.9469281563 | J51: 121.206804 | K51: 3.584123072 | L51: 3584.123072 | N51: 1363.576545 | O51: 56.81568938 | P51: 0.9469281563 | Q51: 121.206804 | R51: 3.584123072 | S51: 3584.123072 | U51: 2727.15309 | V51: 113.6313788 | W51: 1.893856313 | X51: 242.413608 | Y51: 7.168246143 | Z51: 7168.246143
C52: 73 | D52: 22.77777778 | E52: 1.079113592 | G52: 1390.029753 | H52: 57.91790636 | I52: 0.9652984394 | J52: 123.5582002 | K52: 3.653654593 | L52: 3653.654593 | N52: 1390.029753 | O52: 57.91790636 | P52: 0.9652984394 | Q52: 123.5582002 | R52: 3.653654593 | S52: 3653.654593 | U52: 2780.059506 | V52: 115.8358127 | W52: 1.930596879 | X52: 247.1164005 | Y52: 7.307309186 | Z52: 7307.309186
C53: 74 | D53: 23.33333333 | E53: 1.058653597 | G53: 1416.894067 | H53: 59.03725279 | I53: 0.9839542132 | J53: 125.9461393 | K53: 3.724266697 | L53: 3724.266697 | N53: 1416.894067 | O53: 59.03725279 | P53: 0.9839542132 | Q53: 125.9461393 | R53: 3.724266697 | S53: 3724.266697 | U53: 2833.788134 | V53: 118.0745056 | W53: 1.967908426 | X53: 251.8922786 | Y53: 7.448533394 | Z53: 7448.533394
C54: 75 | D54: 23.88888889 | E54: 1.038655928 | G54: 1444.174109 | H54: 60.17392121 | I54: 1.002898687 | J54: 128.3710319 | K54: 3.79597153 | L54: 3795.97153 | N54: 1444.174109 | O54: 60.17392121 | P54: 1.002898687 | Q54: 128.3710319 | R54: 3.79597153 | S54: 3795.97153 | U54: 2888.348218 | V54: 120.3478424 | W54: 2.005797374 | X54: 256.7420638 | Y54: 7.59194306 | Z54: 7591.94306
C55: 76 | D55: 24.44444444 | E55: 1.019108607 | G55: 1471.874528 | H55: 61.32810533 | I55: 1.022135089 | J55: 130.8332914 | K55: 3.868781311 | L55: 3868.781311 | N55: 1471.874528 | O55: 61.32810533 | P55: 1.022135089 | Q55: 130.8332914 | R55: 3.868781311 | S55: 3868.781311 | U55: 2943.749056 | V55: 122.6562107 | W55: 2.044270178 | X55: 261.6665828 | Y55: 7.737562623 | Z55: 7737.562623
C56: 77 | D56: 25 | E56: =EXP(3020*(1/(273+D56)-(1/298))) -> 1 | G56: 1500 | H56: 62.5 | I56: 1.041666667 | J56: 133.3333333 | K56: 3.942708333 | L56: 3942.708333 | N56: 1500 | O56: 62.5 | P56: 1.041666667 | Q56: 133.3333333 | R56: 3.942708333 | S56: 3942.708333 | U56: 3000 | V56: 125 | W56: 2.083333333 | X56: 266.6666667 | Y56: 7.885416667 | Z56: 7885.416667
C57: 78 | D57: 25.55555556 | E57: 0.981318811 | G57: 1528.555229 | H57: 63.68980121 | I57: 1.061496687 | J57: 135.8715759 | K57: 4.01776496 | L57: 4017.76496 | N57: 1528.555229 | O57: 63.68980121 | P57: 1.061496687 | Q57: 135.8715759 | R57: 4.01776496 | S57: 4017.76496 | U57: 3057.110458 | V57: 127.3796024 | W57: 2.122993374 | X57: 271.7431518 | Y57: 8.03552992 | Z57: 8035.52992
C58: 79 | D58: 26.11111111 | E58: 0.96305407 | G58: 1557.544947 | H58: 64.89770611 | I58: 1.081628435 | J58: 138.4484397 | K58: 4.093963627 | L58: 4093.963627 | N58: 1557.544947 | O58: 64.89770611 | P58: 1.081628435 | Q58: 138.4484397 | R58: 4.093963627 | S58: 4093.963627 | U58: 3115.089893 | V58: 129.7954122 | W58: 2.16325687 | X58: 276.8968794 | Y58: 8.187927254 | Z58: 8187.927254
C59: 80 | D59: 26.66666667 | E59: 0.9451951222 | G59: 1586.973911 | H59: 66.12391297 | I59: 1.102065216 | J59: 141.0643477 | K59: 4.171316843 | L59: 4171.316843 | N59: 1586.973911 | O59: 66.12391297 | P59: 1.102065216 | Q59: 141.0643477 | R59: 4.171316843 | S59: 4171.316843 | U59: 3173.947822 | V59: 132.2478259 | W59: 2.204130432 | X59: 282.1286953 | Y59: 8.342633686 | Z59: 8342.633686
C60: 81 | D60: 27.22222222 | E60: 0.9277316188 | G60: 1616.846909 | H60: 67.3686212 | I60: 1.122810353 | J60: 143.7197252 | K60: 4.249837187 | L60: 4249.837187 | N60: 1616.846909 | O60: 67.3686212 | P60: 1.122810353 | Q60: 143.7197252 | R60: 4.249837187 | S60: 4249.837187 | U60: 3233.693818 | V60: 134.7372424 | W60: 2.245620707 | X60: 287.4394504 | Y60: 8.499674375 | Z60: 8499.674375
C61: =C60+1 -> 82 | D61: 27.77777778 | E61: 0.9106535065 | G61: 1647.168752 | H61: 68.63203134 | I61: 1.143867189 | J61: 146.4150002 | K61: 4.32953731 | L61: 4329.53731 | N61: 1647.168752 | O61: 68.63203134 | P61: 1.143867189 | Q61: 146.4150002 | R61: 4.32953731 | S61: 4329.53731 | U61: 3294.337504 | V61: 137.2640627 | W61: 2.287734378 | X61: 292.8300004 | Y61: 8.659074621 | Z61: 8659.074621
C62: 83 | D62: 28.33333333 | E62: 0.8939510188 | G62: 1677.944282 | H62: 69.91434506 | I62: 1.165239084 | J62: 149.1506028 | K62: 4.410429935 | L62: 4410.429935 | N62: 1677.944282 | O62: 69.91434506 | P62: 1.165239084 | Q62: 149.1506028 | R62: 4.410429935 | S62: 4410.429935 | U62: 3355.888563 | V62: 139.8286901 | W62: 2.330478169 | X62: 298.3012056 | Y62: 8.820859869 | Z62: 8820.859869
C63: 84 | D63: 28.88888889 | E63: 0.8776146667 | G63: 1709.178364 | H63: 71.21576516 | I63: 1.186929419 | J63: 151.9269657 | K63: 4.492527852 | L63: 4492.527852 | N63: 1709.178364 | O63: 71.21576516 | P63: 1.186929419 | Q63: 151.9269657 | R63: 4.492527852 | S63: 4492.527852 | U63: 3418.356728 | V63: 142.4315303 | W63: 2.373858839 | X63: 303.8539313 | Y63: 8.985055704 | Z63: 8985.055704
C64: 85 | D64: 29.44444444 | E64: 0.8616352299 | G64: 1740.875893 | H64: 72.53649553 | I64: 1.208941592 | J64: 154.7445238 | K64: 4.575843926 | L64: 4575.843926 | N64: 1740.875893 | O64: 72.53649553 | P64: 1.208941592 | Q64: 154.7445238 | R64: 4.575843926 | S64: 4575.843926 | U64: 3481.751785 | V64: 145.0729911 | W64: 2.417883184 | X64: 309.4890476 | Y64: 9.151687853 | Z64: 9151.687853
C65: 86 | D65: 30 | E65: 0.8460037487 | G65: 1773.041789 | H65: 73.8767412 | I65: 1.23127902 | J65: 157.6037146 | K65: 4.660391091 | L65: 4660.391091 | N65: 1773.041789 | O65: 73.8767412 | P65: 1.23127902 | Q65: 157.6037146 | R65: 4.660391091 | S65: 4660.391091 | U65: 3546.083578 | V65: 147.7534824 | W65: 2.46255804 | X65: 315.2074291 | Y65: 9.320782181 | Z65: 9320.782181
C66: 87 | D66: 30.55555556 | E66: 0.8307115158 | G66: 1805.680999 | H66: 75.2367083 | I66: 1.253945138 | J66: 160.5049777 | K66: 4.746182349 | L66: 4746.182349 | N66: 1805.680999 | O66: 75.2367083 | P66: 1.253945138 | Q66: 160.5049777 | R66: 4.746182349 | S66: 4746.182349 | U66: 3611.361999 | V66: 150.4734166 | W66: 2.507890277 | X66: 321.0099554 | Y66: 9.492364698 | Z66: 9492.364698
C67: 88 | D67: 31.11111111 | E67: 0.8157500682 | G67: 1838.798498 | H67: 76.61660408 | I67: 1.276943401 | J67: 163.4487554 | K67: 4.833230774 | L67: 4833.230774 | N67: 1838.798498 | O67: 76.61660408 | P67: 1.276943401 | Q67: 163.4487554 | R67: 4.833230774 | S67: 4833.230774 | U67: 3677.596996 | V67: 153.2332082 | W67: 2.553886803 | X67: 326.8975107 | Y67: 9.666461547 | Z67: 9666.461547
C68: 89 | D68: 31.66666667 | E68: 0.8011111799 | G68: 1872.399285 | H68: 78.01663686 | I68: 1.300277281 | J68: 166.435492 | K68: 4.921549508 | L68: 4921.549508 | N68: 1872.399285 | O68: 78.01663686 | P68: 1.300277281 | Q68: 166.435492 | R68: 4.921549508 | S68: 4921.549508 | U68: 3744.798569 | V68: 156.0332737 | W68: 2.600554562 | X68: 332.8709839 | Y68: 9.843099017 | Z68: 9843.099017
C69: 90 | D69: 32.22222222 | E69: 0.7867868544 | G69: 1906.488386 | H69: 79.43701608 | I69: 1.323950268 | J69: 169.4656343 | K69: 5.011151764 | L69: 5011.151764 | N69: 1906.488386 | O69: 79.43701608 | P69: 1.323950268 | Q69: 169.4656343 | R69: 5.011151764 | S69: 5011.151764 | U69: 3812.976772 | V69: 158.8740322 | W69: 2.647900536 | X69: 338.9312686 | Y69: 10.02230353 | Z69: 10022.30353
C70: 91 | D70: 32.77777778 | E70: 0.7727693178 | G70: 1941.070855 | H70: 80.87795227 | I70: 1.347965871 | J70: 172.5396315 | K70: 5.102050822 | L70: 5102.050822 | N70: 1941.070855 | O70: 80.87795227 | P70: 1.347965871 | Q70: 172.5396315 | R70: 5.102050822 | S70: 5102.050822 | U70: 3882.141709 | V70: 161.7559045 | W70: 2.695931742 | X70: 345.079263 | Y70: 10.20410164 | Z70: 10204.10164
C71: 92 | D71: 33.33333333 | E71: 0.7590510118 | G71: 1976.151769 | H71: 82.33965705 | I71: 1.372327618 | J71: 175.657935 | K71: 5.194260032 | L71: 5194.260032 | N71: 1976.151769 | O71: 82.33965705 | P71: 1.372327618 | Q71: 175.657935 | R71: 5.194260032 | S71: 5194.260032 | U71: 3952.303538 | V71: 164.6793141 | W71: 2.744655235 | X71: 351.3158701 | Y71: 10.38852006 | Z71: 10388.52006
C72: 93 | D72: 33.88888889 | E72: 0.7456245874 | G72: 2011.736235 | H72: 83.82234311 | I72: 1.397039052 | J72: 178.8209986 | K72: 5.287792811 | L72: 5287.792811 | N72: 2011.736235 | O72: 83.82234311 | P72: 1.397039052 | Q72: 178.8209986 | R72: 5.287792811 | S72: 5287.792811 | U72: 4023.472469 | V72: 167.6446862 | W72: 2.794078104 | X72: 357.6419973 | Y72: 10.57558562 | Z72: 10575.58562
C73: 94 | D73: 34.44444444 | E73: 0.732482898 | G73: 2047.829382 | H73: 85.32622424 | I73: 1.422103737 | J73: 182.0292784 | K73: 5.382662646 | L73: 5382.662646 | N73: 2047.829382 | O73: 85.32622424 | P73: 1.422103737 | Q73: 182.0292784 | R73: 5.382662646 | S73: 5382.662646 | U73: 4095.658763 | V73: 170.6524485 | W73: 2.844207475 | X73: 364.0585567 | Y73: 10.76532529 | Z73: 10765.32529
C74: 95 | D74: 35 | E74: 0.7196189935 | G74: 2084.436366 | H74: 86.85151527 | I74: 1.447525254 | J74: 185.2832326 | K74: 5.478883088 | L74: 5478.883088 | N74: 2084.436366 | O74: 86.85151527 | P74: 1.447525254 | Q74: 185.2832326 | R74: 5.478883088 | S74: 5478.883088 | U74: 4168.872733 | V74: 173.7030305 | W74: 2.895050509 | X74: 370.5664651 | Y74: 10.95776618 | Z74: 10957.76618
C75: 96 | D75: 35.55555556 | E75: 0.7070261146 | G75: =V$4/$E75 -> 2121.562371 | H75: 88.39843212 | I75: 1.473307202 | J75: 188.5833219 | K75: 5.57646776 | L75: 5576.46776 | N75: =IF(OR($V$4=0,$V$5=0),0,(G75/$V$5)-G75) -> 2121.562371 | O75: =IF(OR($V$4=0,$V$5=0),0,(H75/$V$5)-H75) -> 88.39843212 | P75: =IF(OR($V$4=0,$V$5=0),0,(I75/$V$5)-I75) -> 1.473307202 | Q75: =IF(OR($V$4=0,$V$5=0),0,(J75/$V$5)-J75) -> 188.5833219 | R75: =IF(OR($V$4=0,$V$5=0),0,(K75/$V$5)-K75) -> 5.57646776 | S75: =IF(OR($V$4=0,$V$5=0),0,(L75/$V$5)-L75) -> 5576.46776 | U75: =IF($V$5=0,0,G75+N75) -> 4243.124742 | V75: =IF($V$5=0,0,H75+O75) -> 176.7968642 | W75: =IF($V$5=0,0,I75+P75) -> 2.946614404 | X75: =IF($V$5=0,0,J75+Q75) -> 377.1666437 | Y75: =IF($V$5=0,0,K75+R75) -> 11.15293552 | Z75: =IF($V$5=0,0,L75+S75) -> 11152.93552 | AG75: =IF(V$6=C$56,G75,"") ->  | AH75: =IF(V$6=C$56,N$56,"") ->  | AI75: =IF(V$6=C$56,G75/(G75+N$56),"") ->  | AJ75: =IF(V$6=77,AI75-AI$56,"") ->  | AM75: =IF(V$6=C$29,G75,"") ->  | AN75: =IF(V$6=C$29,N$29,"") ->  | AP75: =IF(V$6=50,AO75-AO$29,"") -> 
C76: 97 | D76: =(C76-32)*5/9 -> 36.11111111 | E76: =EXP(3020*(1/(273+D76)-(1/298))) -> 0.6946976866 | G76: 2159.212603 | H76: =G76/24 -> 89.96719179 | I76: =G76/1440 -> 1.499453196 | J76: =I76*128 -> 191.9300091 | K76: =I76*3.785 -> 5.675430349 | L76: =I76*3785 -> 5675.430349 | N76: 2159.212603 | O76: 89.96719179 | P76: 1.499453196 | Q76: 191.9300091 | R76: 5.675430349 | S76: 5675.430349 | U76: 4318.425206 | V76: 179.9343836 | W76: 2.998906393 | X76: 383.8600183 | Y76: 11.3508607 | Z76: 11350.8607
C77: =C76+1 -> 98 | D77: =(C77-32)*5/9 -> 36.66666667 | E77: =EXP(3020*(1/(273+D77)-(1/298))) -> 0.6826273139 | G77: 2197.392295 | H77: =G77/24 -> 91.5580123 | I77: =G77/1440 -> 1.525966872 | J77: =I77*128 -> 195.3237596 | K77: =I77*3.785 -> 5.775784609 | L77: =I77*3785 -> 5775.784609 | N77: 2197.392295 | O77: 91.5580123 | P77: 1.525966872 | Q77: 195.3237596 | R77: 5.775784609 | S77: 5775.784609 | U77: 4394.78459 | V77: 183.1160246 | W77: 3.051933743 | X77: 390.6475191 | Y77: 11.55156922 | Z77: 11551.56922
C78: =C77+1 -> 99 | D78: =(C78-32)*5/9 -> 37.22222222 | E78: =EXP(3020*(1/(273+D78)-(1/298))) -> 0.6708087749 | G78: 2236.106706 | H78: =G78/24 -> 93.17111275 | I78: =G78/1440 -> 1.552851879 | J78: =I78*128 -> 198.7650405 | K78: =I78*3.785 -> 5.877544363 | L78: =I78*3785 -> 5877.544363 | N78: 2236.106706 | O78: 93.17111275 | P78: 1.552851879 | Q78: 198.7650405 | R78: 5.877544363 | S78: 5877.544363 | U78: 4472.213412 | V78: 186.3422255 | W78: 3.105703758 | X78: 397.5300811 | Y78: 11.75508873 | Z78: 11755.08873
C79: =C78+1 -> 100 | D79: =(C79-32)*5/9 -> 37.77777778 | E79: =EXP(3020*(1/(273+D79)-(1/298))) -> 0.6592360165 | G79: 2275.361119 | H79: =G79/24 -> 94.80671328 | I79: =G79/1440 -> 1.580111888 | J79: =I79*128 -> 202.2543217 | K79: =I79*3.785 -> 5.980723496 | L79: =I79*3785 -> 5980.723496 | N79: 2275.361119 | O79: 94.80671328 | P79: 1.580111888 | Q79: 202.2543217 | R79: 5.980723496 | S79: 5980.723496 | U79: 4550.722238 | V79: 189.6134266 | W79: 3.160223776 | X79: 404.5086433 | Y79: 11.96144699 | Z79: 11961.44699
C80: =C79+1 -> 101 | D80: =(C80-32)*5/9 -> 38.33333333 | E80: =EXP(3020*(1/(273+D80)-(1/298))) -> 0.647903149 | G80: 2315.160842 | H80: =G80/24 -> 96.46503508 | I80: =G80/1440 -> 1.607750585 | J80: =I80*128 -> 205.7920748 | K80: =I80*3.785 -> 6.085335963 | L80: =I80*3785 -> 6085.335963 | N80: 2315.160842 | O80: 96.46503508 | P80: 1.607750585 | Q80: 205.7920748 | R80: 6.085335963 | S80: 6085.335963 | U80: 4630.321684 | V80: 192.9300702 | W80: 3.215501169 | X80: 411.5841497 | Y80: 12.17067193 | Z80: 12170.67193
C81: 102 | D81: 38.88888889 | E81: 0.6368044416 | G81: 2355.511209 | H81: 98.14630036 | I81: 1.635771673 | J81: 209.3787741 | K81: 6.191395781 | L81: 6191.395781 | N81: 2355.511209 | O81: 98.14630036 | P81: 1.635771673 | Q81: 209.3787741 | R81: 6.191395781 | S81: 6191.395781 | U81: 4711.022417 | V81: 196.2926007 | W81: 3.271543345 | X81: 418.7575482 | Y81: 12.38279156 | Z81: 12382.79156 | AO81: =IF(V$6=C$29,G81/(G81+N$29),"") -> 
C82: 103 | D82: 39.44444444 | E82: 0.6259343172 | G82: 2396.417577 | H82: 99.85073239 | I82: 1.664178873 | J82: 213.0148958 | K82: 6.298917035 | L82: 6298.917035 | N82: 2396.417577 | O82: 99.85073239 | P82: 1.664178873 | Q82: 213.0148958 | R82: 6.298917035 | S82: 6298.917035 | U82: 4792.835155 | V82: 199.7014648 | W82: 3.328357746 | X82: 426.0297915 | Y82: 12.59783407 | Z82: 12597.83407
C83: 104 | D83: 40 | E83: 0.6152873481 | G83: 2437.885331 | H83: 101.5785554 | I83: 1.692975924 | J83: 216.7009183 | K83: 6.407913872 | L83: 6407.913872 | N83: 2437.885331 | O83: 101.5785554 | P83: 1.692975924 | Q83: 216.7009183 | R83: 6.407913872 | S83: 6407.913872 | U83: 4875.770661 | V83: 203.1571109 | W83: 3.385951848 | X83: 433.4018365 | Y83: 12.81582774 | Z83: 12815.82774
C84: 105 | D84: 40.55555556 | E84: 0.6048582516 | G84: 2479.919875 | H84: 103.3299948 | I84: 1.72216658 | J84: 220.4373223 | K84: 6.518400506 | L84: 6518.400506 | N84: 2479.919875 | O84: 103.3299948 | P84: 1.72216658 | Q84: 220.4373223 | R84: 6.518400506 | S84: 6518.400506 | U84: 4959.839751 | V84: 206.6599896 | W84: 3.44433316 | X84: 440.8746445 | Y84: 13.03680101 | Z84: 13036.80101
C85: 106 | D85: 41.11111111 | E85: 0.5946418856 | G85: 2522.526644 | H85: 105.1052768 | I85: 1.751754614 | J85: 224.2245906 | K85: 6.630391213 | L85: 6630.391213 | N85: 2522.526644 | O85: 105.1052768 | P85: 1.751754614 | Q85: 224.2245906 | R85: 6.630391213 | S85: 6630.391213 | U85: 5045.053288 | V85: 210.2105537 | W85: 3.503509228 | X85: 448.4491811 | Y85: 13.26078243 | Z85: 13260.78243
C86: 107 | D86: 41.66666667 | E86: 0.5846332445 | G86: 2565.711092 | H86: 106.9046288 | I86: 1.781743814 | J86: 228.0632081 | K86: 6.743900335 | L86: 6743.900335 | N86: 2565.711092 | O86: 106.9046288 | P86: 1.781743814 | Q86: 228.0632081 | R86: 6.743900335 | S86: 6743.900335 | U86: 5131.422183 | V86: 213.8092576 | W86: 3.563487627 | X86: 456.1264163 | Y86: 13.48780067 | Z86: 13487.80067
C87: =C86+1 -> 108 | D87: =(C87-32)*5/9 -> 42.22222222 | E87: =EXP(3020*(1/(273+D87)-(1/298))) -> 0.5748274553 | G87: 2609.478699 | H87: 108.7282791 | I87: 1.812137985 | J87: 231.9536621 | K87: 6.858942274 | L87: 6858.942274 | N87: 2609.478699 | O87: 108.7282791 | P87: 1.812137985 | Q87: 231.9536621 | R87: 6.858942274 | S87: 6858.942274 | U87: 5218.957397 | V87: 217.4565582 | W87: 3.62427597 | X87: 463.9073242 | Y87: 13.71788455 | Z87: 13717.88455
C88: 109 | D88: 42.77777778 | E88: 0.5652197734 | G88: 2653.834969 | H88: 110.576457 | I88: 1.842940951 | J88: 235.8964417 | K88: 6.975531499 | L88: 6975.531499 | N88: 2653.834969 | O88: 110.576457 | P88: 1.842940951 | Q88: 235.8964417 | R88: 6.975531499 | S88: 6975.531499 | U88: 5307.669938 | V88: 221.1529141 | W88: 3.685881902 | X88: 471.7928834 | Y88: 13.951063 | Z88: 13951.063
C89: 110 | D89: =(C89-32)*5/9 -> 43.33333333 | E89: =EXP(3020*(1/(273+D89)-(1/298))) -> 0.5558055794 | G89: 2698.785431 | H89: 112.4493929 | I89: 1.874156549 | J89: 239.8920383 | K89: 7.093682538 | L89: 7093.682538 | N89: 2698.785431 | O89: 112.4493929 | P89: 1.874156549 | Q89: 239.8920383 | R89: 7.093682538 | S89: 7093.682538 | U89: 5397.570861 | V89: 224.8987859 | W89: 3.748313098 | X89: 479.7840766 | Y89: 14.18736508 | Z89: 14187.36508
C90: 111 | D90: 43.88888889 | E90: 0.5465803748 | G90: 2744.335635 | H90: 114.3473181 | I90: 1.905788635 | J90: 243.9409453 | K90: 7.213409985 | L90: 7213.409985 | N90: 2744.335635 | O90: 114.3473181 | P90: 1.905788635 | Q90: 243.9409453 | R90: 7.213409985 | S90: 7213.409985 | U90: 5488.67127 | V90: 228.6946362 | W90: 3.811577271 | X90: 487.8818907 | Y90: 14.42681997 | Z90: 14426.81997
C91: 112 | D91: 44.44444444 | E91: 0.5375397791 | G91: 2790.491157 | H91: 116.2704649 | I91: 1.937841081 | J91: 248.0436584 | K91: 7.334728492 | L91: 7334.728492 | N91: 2790.491157 | O91: 116.2704649 | P91: 1.937841081 | Q91: 248.0436584 | R91: 7.334728492 | S91: 7334.728492 | U91: 5580.982314 | V91: 232.5409297 | W91: 3.875682162 | X91: 496.0873168 | Y91: 14.66945698 | Z91: 14669.45698
C92: 113 | D92: 45 | E92: 0.5286795258 | G92: 2837.257595 | H92: 118.2190665 | I92: 1.970317774 | J92: 252.2006751 | K92: 7.457652776 | L92: 7457.652776 | N92: 2837.257595 | O92: 118.2190665 | P92: 1.970317774 | Q92: 252.2006751 | R92: 7.457652776 | S92: 7457.652776 | U92: 5674.51519 | V92: 236.4381329 | W92: 3.940635549 | X92: 504.4013502 | Y92: 14.91530555 | Z92: 14915.30555
C93: 114 | D93: 45.55555556 | E93: 0.5199954597 | G93: 2884.640571 | H93: 120.1933571 | I93: 2.003222619 | J93: 256.4124952 | K93: 7.582197613 | L93: 7582.197613 | N93: 2884.640571 | O93: 120.1933571 | P93: 2.003222619 | Q93: 256.4124952 | R93: 7.582197613 | S93: 7582.197613 | U93: 5769.281142 | V93: 240.3867143 | W93: 4.006445238 | X93: 512.8249904 | Y93: 15.16439523 | Z93: 15164.39523
C94: 115 | D94: 46.11111111 | E94: 0.5114835333 | G94: 2932.64573 | H94: 122.1935721 | I94: 2.036559535 | J94: 260.6796205 | K94: 7.70837784 | L94: 7708.37784 | N94: 2932.64573 | O94: 122.1935721 | P94: 2.036559535 | Q94: 260.6796205 | R94: 7.70837784 | S94: 7708.37784 | U94: 5865.29146 | V94: 244.3871442 | W94: 4.07311907 | X94: 521.3592409 | Y94: 15.41675568 | Z94: 15416.75568

Sheet Sheet2 (hidden)
A1: Enter Groen model number with drop down box - v look up | B1: Hourly water usage | C1: How many hours per day with drop down box | D1: Is water softened or not. Drop down box | F1: F or C | G1: Temperature | M1: Model # | N1: Operational Hours Per Day | O1: Water Softener | P1: F or C | Q1: Water Temp
A2: Enter all steamer models | I2: ='RO Water Calculator'!B2 -> (2)HY-5EF | J2: 175 | K2: OP175 | M2: SSB-3E | N2: 1 | O2: Yes | P2: F | Q2: 0
A3: SSB-3E | B3: 5.3 | C3: 1 | D3: Yes | E3: 0.5 | F3: F | G3: 0 | I3: ='RO Water Calculator'!B3 -> 14 | J3: 350 | K3: OP350 | M3: SSB-3E | N3: 2 | O3: Yes | P3: F | Q3: 0
A4: SSB-5E | B4: 6.9 | C4: 2 | D4: No | E4: 0.33 | F4: C | G4: 1 | I4: ='RO Water Calculator'!#REF! ->  | J4: 1500 | K4: BWS1500 | M4: SSB-3E | N4: 3 | O4: Yes | P4: F | Q4: 0
A5: SSB-10EF | B5: 22 | C5: 3 | G5: 2 | I5: ='RO Water Calculator'!#REF! ->  | M5: SSB-3E | N5: 4 | O5: Yes | P5: F | Q5: 0
A6: (2)SSB-3EF | B6: 10.6 | C6: 4 | G6: 3 | I6: ='RO Water Calculator'!B4 -> 51 | M6: SSB-3E | N6: 5 | O6: Yes | P6: F | Q6: 0
A7: (2)SSB-5EF | B7: 13.8 | C7: 5 | G7: 4 | I7: =I2&I3&I4&I5&I6 ->  | M7: SSB-3E | N7: 6 | O7: Yes | P7: F | Q7: 0
A8: (2)SSB-10EF | B8: 44 | C8: 6 | G8: 5 | M8: SSB-3E | N8: 7 | O8: Yes | P8: F | Q8: 0
A9: SSB-3G | B9: 2.2 | C9: 7 | G9: 6 | I9: 32 | M9: SSB-3E | N9: 8 | O9: Yes | P9: F | Q9: 0
A10: SSB-5G | B10: 2.4 | C10: 8 | G10: 7 | I10: 33 | M10: SSB-3E | N10: 9 | O10: Yes | P10: F | Q10: 0
A11: SSB-10GF | B11: 22 | C11: 9 | G11: 8 | I11: 34 | M11: SSB-3E | N11: 10 | O11: Yes | P11: F | Q11: 0
A12: (2)SSB-3GF | B12: 4.4 | C12: 10 | G12: 9 | I12: 35 | M12: SSB-3E | N12: 11 | O12: Yes | P12: F | Q12: 0
A13: (2)SSB-5GF | B13: 4.8 | C13: 11 | G13: 10 | I13: 36 | M13: SSB-3E | N13: 12 | O13: Yes | P13: F | Q13: 0
A14: (2)SSB-10GF | B14: 44 | C14: 12 | G14: 11 | I14: 37 | M14: SSB-3E | N14: 13 | O14: Yes | P14: F | Q14: 0
A15: HY-3E | B15: 3.6 | C15: 13 | G15: 12 | I15: 38 | M15: SSB-3E | N15: 14 | O15: Yes | P15: F | Q15: 0
A16: HY-5E | B16: 6 | C16: 14 | G16: 13 | I16: 39 | M16: SSB-3E | N16: 15 | O16: Yes | P16: F | Q16: 0
A17: (2)HY-3E | B17: 7.2 | C17: 15 | G17: 14 | I17: 40 | M17: SSB-3E | N17: 16 | O17: Yes | P17: F | Q17: 0
A18: HY-6E | B18: 7.2 | C18: 16 | G18: 15 | I18: 41 | M18: SSB-3E | N18: 17 | O18: Yes | P18: F | Q18: 0
A19: (2)HY-3EF | B19: 14.4 | C19: 17 | G19: 16 | I19: 42 | M19: SSB-3E | N19: 18 | O19: Yes | P19: F | Q19: 0
A20: (2)HY-5EF | B20: 12 | C20: 18 | G20: 17 | I20: 43 | M20: SSB-3E | N20: 19 | O20: Yes | P20: F | Q20: 0
A21: HY-5G | B21: 6 | C21: 19 | G21: 18 | I21: 44 | M21: SSB-3E | N21: 20 | O21: Yes | P21: F | Q21: 0
A22: HY-6G | B22: 7.2 | C22: 20 | G22: 19 | I22: 45 | M22: SSB-3E | N22: 21 | O22: Yes | P22: F | Q22: 0
A23: (2)HY-5GF | B23: 12 | C23: 21 | G23: 20 | I23: 46 | M23: SSB-3E | N23: 22 | O23: Yes | P23: F | Q23: 0
A24: HY-6SE | B24: 19.2 | C24: 22 | G24: 21 | I24: 47 | M24: SSB-3E | N24: 23 | O24: Yes | P24: F | Q24: 0
A25: HY-10SE | B25: 19.2 | C25: 23 | G25: 22 | I25: 48 | M25: SSB-3E | N25: 24 | O25: Yes | P25: F | Q25: 0
A26: CNEB/24-24kw | B26: 8.4 | C26: 24 | G26: 23 | I26: 49 | M26: SSB-3E | N26: 1 | O26: No | P26: F | Q26: 0
A27: CNEB/24-36kw | B27: 12.7 | G27: 24 | I27: 50 | M27: SSB-3E | N27: 2 | O27: No | P27: F | Q27: 0
A28: CNEB/24-48kw | B28: 16.9 | G28: 25 | I28: 51 | M28: SSB-3E | N28: 3 | O28: No | P28: F | Q28: 0
A29: CNGB/24 | B29: 13.25 | G29: 26 | I29: 52 | M29: SSB-3E | N29: 4 | O29: No | P29: F | Q29: 0
A30: HY-6SG | B30: 19.2 | G30: 27 | I30: 53 | M30: SSB-3E | N30: 5 | O30: No | P30: F | Q30: 0
A31: HY-10SG | B31: 19.2 | G31: 28 | I31: 54 | M31: SSB-3E | N31: 6 | O31: No | P31: F | Q31: 0
G32: 29 | I32: 55 | M32: SSB-3E | N32: 7 | O32: No | P32: F | Q32: 0
G33: 30 | I33: 56 | M33: SSB-3E | N33: 8 | O33: No | P33: F | Q33: 0
G34: 31 | I34: 57 | M34: SSB-3E | N34: 9 | O34: No | P34: F | Q34: 0
G35: 32 | I35: 58 | M35: SSB-3E | N35: 10 | O35: No | P35: F | Q35: 0
G36: 33 | I36: 59 | M36: SSB-3E | N36: 11 | O36: No | P36: F | Q36: 0
G37: 34 | I37: 60 | M37: SSB-3E | N37: 12 | O37: No | P37: F | Q37: 0
G38: 35 | I38: 61 | M38: SSB-3E | N38: 13 | O38: No | P38: F | Q38: 0
G39: 36 | I39: 62 | M39: SSB-3E | N39: 14 | O39: No | P39: F | Q39: 0
G40: 37 | I40: 63 | M40: SSB-3E | N40: 15 | O40: No | P40: F | Q40: 0
G41: 38 | I41: 64 | M41: SSB-3E | N41: 16 | O41: No | P41: F | Q41: 0
G42: 39 | I42: 65 | M42: SSB-3E | N42: 17 | O42: No | P42: F | Q42: 0
G43: 40 | I43: 66 | M43: SSB-3E | N43: 18 | O43: No | P43: F | Q43: 0
G44: 41 | I44: 67 | M44: SSB-3E | N44: 19 | O44: No | P44: F | Q44: 0
G45: 42 | I45: 68 | M45: SSB-3E | N45: 20 | O45: No | P45: F | Q45: 0
G46: 43 | I46: 69 | M46: SSB-3E | N46: 21 | O46: No | P46: F | Q46: 0
G47: 44 | I47: 70 | M47: SSB-3E | N47: 22 | O47: No | P47: F | Q47: 0
G48: 45 | I48: 71 | M48: SSB-3E | N48: 23 | O48: No | P48: F | Q48: 0
G49: 46 | I49: 72 | M49: SSB-3E | N49: 24 | O49: No | P49: F | Q49: 0
G50: 47 | I50: 73 | M50: SSB-3E | N50: 1 | O50: Yes | P50: C | Q50: 0
G51: 48 | I51: 74 | M51: SSB-3E | N51: 2 | O51: Yes | P51: C | Q51: 0
G52: 49 | I52: 75 | M52: SSB-3E | N52: 3 | O52: Yes | P52: C | Q52: 0
G53: 50 | I53: 76 | M53: SSB-3E | N53: 4 | O53: Yes | P53: C | Q53: 0
G54: 51 | I54: 77 | M54: SSB-3E | N54: 5 | O54: Yes | P54: C | Q54: 0
G55: 52 | I55: 78 | M55: SSB-3E | N55: 6 | O55: Yes | P55: C | Q55: 0
G56: 53 | I56: 79 | M56: SSB-3E | N56: 7 | O56: Yes | P56: C | Q56: 0
G57: 54 | I57: 80 | M57: SSB-3E | N57: 8 | O57: Yes | P57: C | Q57: 0
G58: 55 | I58: 81 | M58: SSB-3E | N58: 9 | O58: Yes | P58: C | Q58: 0
G59: 56 | I59: 82 | M59: SSB-3E | N59: 10 | O59: Yes | P59: C | Q59: 0
G60: 57 | I60: 83 | M60: SSB-3E | N60: 11 | O60: Yes | P60: C | Q60: 0
G61: 58 | I61: 84 | M61: SSB-3E | N61: 12 | O61: Yes | P61: C | Q61: 0
G62: 59 | I62: 85 | M62: SSB-3E | N62: 13 | O62: Yes | P62: C | Q62: 0
G63: 60 | I63: 86 | M63: SSB-3E | N63: 14 | O63: Yes | P63: C | Q63: 0
G64: 61 | I64: 87 | M64: SSB-3E | N64: 15 | O64: Yes | P64: C | Q64: 0
G65: 62 | I65: 88 | M65: SSB-3E | N65: 16 | O65: Yes | P65: C | Q65: 0
G66: 63 | I66: 89 | M66: SSB-3E | N66: 17 | O66: Yes | P66: C | Q66: 0
G67: 64 | I67: 90 | M67: SSB-3E | N67: 18 | O67: Yes | P67: C | Q67: 0
G68: 65 | I68: 91 | M68: SSB-3E | N68: 19 | O68: Yes | P68: C | Q68: 0
G69: 66 | I69: 92 | M69: SSB-3E | N69: 20 | O69: Yes | P69: C | Q69: 0
G70: 67 | I70: 93 | M70: SSB-3E | N70: 21 | O70: Yes | P70: C | Q70: 0
G71: 68 | I71: 94 | M71: SSB-3E | N71: 22 | O71: Yes | P71: C | Q71: 0
G72: 69 | I72: 95 | M72: SSB-3E | N72: 23 | O72: Yes | P72: C | Q72: 0
G73: 70 | I73: 96 | M73: SSB-3E | N73: 24 | O73: Yes | P73: C | Q73: 0
G74: 71 | I74: 97 | M74: SSB-3E | N74: 1 | O74: No | P74: C | Q74: 0
G75: 72 | I75: 98 | M75: SSB-3E | N75: 2 | O75: No | P75: C | Q75: 0
G76: 73 | I76: 99 | M76: SSB-3E | N76: 3 | O76: No | P76: C | Q76: 0
G77: 74 | I77: 100 | M77: SSB-3E | N77: 4 | O77: No | P77: C | Q77: 0
G78: 75 | I78: 101 | M78: SSB-3E | N78: 5 | O78: No | P78: C | Q78: 0
G79: 76 | I79: 102 | M79: SSB-3E | N79: 6 | O79: No | P79: C | Q79: 0
G80: 77 | I80: 103 | M80: SSB-3E | N80: 7 | O80: No | P80: C | Q80: 0
G81: 78 | I81: 104 | M81: SSB-3E | N81: 8 | O81: No | P81: C | Q81: 0
G82: 79 | I82: 105 | M82: SSB-3E | N82: 9 | O82: No | P82: C | Q82: 0
G83: 80 | I83: 106 | M83: SSB-3E | N83: 10 | O83: No | P83: C | Q83: 0
G84: 81 | I84: 107 | M84: SSB-3E | N84: 11 | O84: No | P84: C | Q84: 0
G85: 82 | I85: 108 | M85: SSB-3E | N85: 12 | O85: No | P85: C | Q85: 0
G86: 83 | I86: 109 | M86: SSB-3E | N86: 13 | O86: No | P86: C | Q86: 0
G87: 84 | I87: 110 | M87: SSB-3E | N87: 14 | O87: No | P87: C | Q87: 0
G88: 85 | I88: 111 | M88: SSB-3E | N88: 15 | O88: No | P88: C | Q88: 0
G89: 86 | I89: 112 | M89: SSB-3E | N89: 16 | O89: No | P89: C | Q89: 0
G90: 87 | I90: 113 | M90: SSB-3E | N90: 17 | O90: No | P90: C | Q90: 0
G91: 88 | I91: 114 | M91: SSB-3E | N91: 18 | O91: No | P91: C | Q91: 0
G92: 89 | I92: 115 | M92: SSB-3E | N92: 19 | O92: No | P92: C | Q92: 0
G93: 90 | I93: 0 | M93: SSB-3E | N93: 20 | O93: No | P93: C | Q93: 0
G94: 91 | I94: 1 | M94: SSB-3E | N94: 21 | O94: No | P94: C | Q94: 0
G95: 92 | I95: 2 | M95: SSB-3E | N95: 22 | O95: No | P95: C | Q95: 0
G96: 93 | I96: 3 | M96: SSB-3E | N96: 23 | O96: No | P96: C | Q96: 0
G97: 94 | I97: 4 | M97: SSB-3E | N97: 24 | O97: No | P97: C | Q97: 0
G98: 95 | I98: 5 | N98: 1 | O98: Yes | P98: F
G99: 96 | I99: 6 | N99: 2 | O99: Yes | P99: F
G100: 97 | I100: 7 | N100: 3 | O100: Yes | P100: F
G101: 98 | I101: 8 | N101: 4 | O101: Yes | P101: F
G102: 99 | I102: 9 | N102: 5 | O102: Yes | P102: F
G103: 100 | I103: 10 | N103: 6 | O103: Yes | P103: F
G104: 101 | I104: 11 | N104: 7 | O104: Yes | P104: F
G105: 102 | I105: 12 | N105: 8 | O105: Yes | P105: F
G106: 103 | I106: 13 | N106: 9 | O106: Yes | P106: F
G107: 104 | I107: 14 | N107: 10 | O107: Yes | P107: F
G108: 105 | I108: 15 | N108: 11 | O108: Yes | P108: F
G109: 106 | I109: 16 | N109: 12 | O109: Yes | P109: F
G110: 107 | I110: 17 | N110: 13 | O110: Yes | P110: F
G111: 108 | I111: 18 | N111: 14 | O111: Yes | P111: F
G112: 109 | I112: 19 | N112: 15 | O112: Yes | P112: F
G113: 110 | I113: 20 | N113: 16 | O113: Yes | P113: F
G114: 111 | I114: 21 | N114: 17 | O114: Yes | P114: F
G115: 112 | I115: 22 | N115: 18 | O115: Yes | P115: F
G116: 113 | I116: 23 | N116: 19 | O116: Yes | P116: F
G117: 114 | I117: 24 | N117: 20 | O117: Yes | P117: F
G118: 115 | I118: 25 | N118: 21 | O118: Yes | P118: F
I119: 26 | N119: 22 | O119: Yes | P119: F
I120: 27 | N120: 23 | O120: Yes | P120: F
I121: 28 | N121: 24 | O121: Yes | P121: F
I122: 29 | N122: 1 | O122: No | P122: F
I123: 30 | N123: 2 | O123: No | P123: F
I124: 31 | N124: 3 | O124: No | P124: F
I125: 32 | N125: 4 | O125: No | P125: F
I126: 33 | N126: 5 | O126: No | P126: F
I127: 34 | N127: 6 | O127: No | P127: F
I128: 35 | N128: 7 | O128: No | P128: F
I129: 36 | N129: 8 | O129: No | P129: F
I130: 37 | N130: 9 | O130: No | P130: F
I131: 38 | N131: 10 | O131: No | P131: F
I132: 39 | N132: 11 | O132: No | P132: F
I133: 40 | N133: 12 | O133: No | P133: F
I134: 41 | N134: 13 | O134: No | P134: F
I135: 42 | N135: 14 | O135: No | P135: F
I136: 43 | N136: 15 | O136: No | P136: F
I137: 44 | N137: 16 | O137: No | P137: F
I138: 45 | N138: 17 | O138: No | P138: F
I139: 46 | N139: 18 | O139: No | P139: F
N140: 19 | O140: No | P140: F
N141: 20 | O141: No | P141: F
N142: 21 | O142: No | P142: F
N143: 22 | O143: No | P143: F
N144: 23 | O144: No | P144: F
N145: 24 | O145: No | P145: F
N146: 1 | O146: Yes | P146: C
N147: 2 | O147: Yes | P147: C
N148: 3 | O148: Yes | P148: C
N149: 4 | O149: Yes | P149: C
N150: 5 | O150: Yes | P150: C
N151: 6 | O151: Yes | P151: C
N152: 7 | O152: Yes | P152: C
N153: 8 | O153: Yes | P153: C
N154: 9 | O154: Yes | P154: C
N155: 10 | O155: Yes | P155: C
N156: 11 | O156: Yes | P156: C
N157: 12 | O157: Yes | P157: C
N158: 13 | O158: Yes | P158: C
N159: 14 | O159: Yes | P159: C
N160: 15 | O160: Yes | P160: C
N161: 16 | O161: Yes | P161: C
N162: 17 | O162: Yes | P162: C
N163: 18 | O163: Yes | P163: C
N164: 19 | O164: Yes | P164: C
N165: 20 | O165: Yes | P165: C
N166: 21 | O166: Yes | P166: C
N167: 22 | O167: Yes | P167: C
N168: 23 | O168: Yes | P168: C
N169: 24 | O169: Yes | P169: C
N170: 1 | O170: No | P170: C
N171: 2 | O171: No | P171: C
N172: 3 | O172: No | P172: C
N173: 4 | O173: No | P173: C
N174: 5 | O174: No | P174: C
N175: 6 | O175: No | P175: C
N176: 7 | O176: No | P176: C
N177: 8 | O177: No | P177: C
N178: 9 | O178: No | P178: C
N179: 10 | O179: No | P179: C
N180: 11 | O180: No | P180: C
N181: 12 | O181: No | P181: C
N182: 13 | O182: No | P182: C
N183: 14 | O183: No | P183: C
N184: 15 | O184: No | P184: C
N185: 16 | O185: No | P185: C
N186: 17 | O186: No | P186: C
N187: 18 | O187: No | P187: C
N188: 19 | O188: No | P188: C
N189: 20 | O189: No | P189: C
N190: 21 | O190: No | P190: C
N191: 22 | O191: No | P191: C
N192: 23 | O192: No | P192: C
N193: 24 | O193: No | P193: C
N194: 1 | O194: Yes | P194: F
N195: 2 | O195: Yes | P195: F
N196: 3 | O196: Yes | P196: F
N197: 4 | O197: Yes | P197: F
N198: 5 | O198: Yes | P198: F
N199: 6 | O199: Yes | P199: F
N200: 7 | O200: Yes | P200: F
... 665 more rows
